[Event "*** Titled Tuesday Blitz"]
[Site "Chess.com"]
[Date "2020.05.05"]
[Round "4"]
[White "LamaChampetre"]
[Black "MoreChessJulia"]
[Result "1-0"]
[WhiteElo "2179"]
[BlackElo "1785"]
[TimeControl "180+1"]
[EndTime "10:41:58 PDT"]
[Termination "LamaChampetre won by resignation"]

1. d4 {[%clk 0:03:00.5]} 1... c5 {[%clk 0:02:48.9]} 2. d5 {[%clk 0:03:00]} 2...
e5 {[%clk 0:02:46.6]} 3. Nc3 {[%clk 0:02:59]} 3... d6 {[%clk 0:02:44.7]} 4. e4
{[%clk 0:02:58.2]} 4... g6 {[%clk 0:02:43.2]} 5. Bb5+ {[%clk 0:02:56.3]} 5...
Bd7 {[%clk 0:02:43.1]} 6. a4 {[%clk 0:02:55.9]} 6... a6 {[%clk 0:02:43.2]} 7.
Bd3 {[%clk 0:02:54.1]} 7... b6 {[%clk 0:02:42.5]} 8. h3 {[%clk 0:02:54]} 8...
Bg7 {[%clk 0:02:41.9]} 9. Nf3 {[%clk 0:02:53.2]} 9... Ne7 {[%clk 0:02:36.8]} 10.
O-O {[%clk 0:02:46.6]} 10... h6 {[%clk 0:02:33.8]} 11. Be3 {[%clk 0:02:42.9]}
11... O-O {[%clk 0:02:32.1]} 12. Qd2 {[%clk 0:02:42]} 12... Kh7 {[%clk
0:02:31.6]} 13. Nh2 {[%clk 0:02:39.6]} 13... f5 {[%clk 0:02:29.5]} 14. exf5
{[%clk 0:02:34.1]} 14... Nxf5 {[%clk 0:02:29.4]} 15. Bxf5 {[%clk 0:02:26.6]}
15... Bxf5 {[%clk 0:02:28.1]} 16. g4 {[%clk 0:02:26.5]} 16... Bc8 {[%clk
0:02:22.7]} 17. Ne4 {[%clk 0:02:26.3]} 17... Qe7 {[%clk 0:02:17.9]} 18. Ra3
{[%clk 0:02:18.6]} 18... Nd7 {[%clk 0:02:15.6]} 19. Ng3 {[%clk 0:02:06]} 19...
Bb7 {[%clk 0:02:11.6]} 20. c4 {[%clk 0:02:03.9]} 20... Nf6 {[%clk 0:01:59.2]}
21. f4 {[%clk 0:02:01.8]} 21... b5 {[%clk 0:01:55.5]} 22. fxe5 {[%clk
0:01:56.7]} 22... dxe5 {[%clk 0:01:34.7]} 23. axb5 {[%clk 0:01:55.1]} 23... axb5
{[%clk 0:01:34.1]} 24. Rxa8 {[%clk 0:01:54.8]} 24... Rxa8 {[%clk 0:01:28.3]} 25.
g5 {[%clk 0:01:54.1]} 25... hxg5 {[%clk 0:01:24.6]} 26. Bxg5 {[%clk 0:01:53.8]}
26... bxc4 {[%clk 0:01:24.6]} 27. Ne4 {[%clk 0:01:50.6]} 27... Rf8 {[%clk
0:01:23.5]} 28. Ng4 {[%clk 0:01:46.2]} 28... Nxe4 {[%clk 0:01:20.1]} 29. Bxe7
{[%clk 0:01:33]} 29... Nxd2 {[%clk 0:01:19.1]} 30. Rxf8 {[%clk 0:01:03.8]} 30...
Bxf8 {[%clk 0:01:16]} 31. Bxf8 {[%clk 0:01:03.9]} 31... Kg8 {[%clk 0:01:08.6]}
32. Bxc5 {[%clk 0:01:00]} 32... Nf3+ {[%clk 0:01:08.1]} 33. Kf2 {[%clk
0:00:49.6]} 33... Bxd5 {[%clk 0:01:05.8]} 34. Nf6+ {[%clk 0:00:47.5]} 34... Kf7
{[%clk 0:01:02.6]} 35. Nxd5 {[%clk 0:00:47.2]} 35... Ke6 {[%clk 0:01:00.4]} 36.
Ne3 {[%clk 0:00:44.6]} 36... Nd2 {[%clk 0:00:55.6]} 37. Bb4 {[%clk 0:00:37.7]}
37... Ne4+ {[%clk 0:00:53]} 38. Kf3 {[%clk 0:00:35.7]} 38... Ng5+ {[%clk
0:00:48.7]} 39. Kg4 {[%clk 0:00:35.4]} 39... Ne4 {[%clk 0:00:43.4]} 40. Nxc4
{[%clk 0:00:33.2]} 40... Kd5 {[%clk 0:00:41.8]} 41. Ne3+ {[%clk 0:00:15.9]}
41... Kd4 {[%clk 0:00:39]} 42. Ng2 {[%clk 0:00:15.5]} 42... Nf2+ {[%clk
0:00:36.1]} 43. Kg3 {[%clk 0:00:14.6]} 43... Ne4+ {[%clk 0:00:35.6]} 44. Kf3
{[%clk 0:00:14.1]} 44... Ng5+ {[%clk 0:00:32]} 45. Kg4 {[%clk 0:00:14.3]} 45...
Ne4 {[%clk 0:00:31.5]} 46. h4 {[%clk 0:00:13.6]} 46... Kc4 {[%clk 0:00:31.1]}
47. Be1 {[%clk 0:00:12.7]} 47... Kb3 {[%clk 0:00:29.9]} 48. Bc3 {[%clk
0:00:12.3]} 48... Nxc3 {[%clk 0:00:28.7]} 49. bxc3 {[%clk 0:00:12.7]} 49... Kxc3
{[%clk 0:00:29]} 50. Kg5 {[%clk 0:00:13.1]} 50... e4 {[%clk 0:00:27.2]} 51. Kxg6
{[%clk 0:00:13]} 51... Kd2 {[%clk 0:00:27.4]} 52. h5 {[%clk 0:00:13.2]} 52...
Ke2 {[%clk 0:00:27.7]} 53. Nf4+ {[%clk 0:00:12.4]} 53... Kf3 {[%clk 0:00:27.5]}
54. Kg5 {[%clk 0:00:12.4]} 54... e3 {[%clk 0:00:26.2]} 55. h6 {[%clk 0:00:12.8]}
55... e2 {[%clk 0:00:24.8]} 56. Nxe2 {[%clk 0:00:12.2]} 56... Kxe2 {[%clk
0:00:24.8]} 57. h7 {[%clk 0:00:12.6]} 1-0

[Event "*** Titled Tuesday Blitz"]
[Site "Chess.com"]
[Date "2020.05.05"]
[Round "4"]
[White "turayev_shahruh17"]
[Black "Dr-Bassem"]
[Result "0-1"]
[WhiteElo "2540"]
[BlackElo "2802"]
[TimeControl "180+1"]
[EndTime "10:41:59 PDT"]
[Termination "Dr-Bassem won by resignation"]

1. e4 {[%clk 0:03:00]} 1... e5 {[%clk 0:02:59.6]} 2. Nc3 {[%clk 0:03:00.2]} 2...
Nc6 {[%clk 0:03:00]} 3. Bc4 {[%clk 0:03:00.7]} 3... Bc5 {[%clk 0:02:59.4]} 4.
Qg4 {[%clk 0:03:00.7]} 4... g6 {[%clk 0:02:45.1]} 5. Qf3 {[%clk 0:03:00.2]} 5...
Nf6 {[%clk 0:02:36]} 6. Nge2 {[%clk 0:03:00.5]} 6... d6 {[%clk 0:02:33.9]} 7. h3
{[%clk 0:02:59.7]} 7... Be6 {[%clk 0:02:17.4]} 8. d3 {[%clk 0:02:59.8]} 8... Nd7
{[%clk 0:01:48.3]} 9. Nd5 {[%clk 0:02:44.9]} 9... Nb4 {[%clk 0:01:43.7]} 10.
Nxb4 {[%clk 0:02:21]} 10... Bxb4+ {[%clk 0:01:44.6]} 11. c3 {[%clk 0:02:20.1]}
11... Bxc4 {[%clk 0:01:39.7]} 12. dxc4 {[%clk 0:02:19.9]} 12... Bc5 {[%clk
0:01:40]} 13. Bh6 {[%clk 0:02:14.7]} 13... Qh4 {[%clk 0:01:35.4]} 14. Be3 {[%clk
0:02:08.2]} 14... Bxe3 {[%clk 0:01:18.2]} 15. Qxe3 {[%clk 0:02:09]} 15... O-O
{[%clk 0:01:16]} 16. g3 {[%clk 0:01:59.8]} 16... Qe7 {[%clk 0:01:15]} 17. h4
{[%clk 0:01:57.1]} 17... f5 {[%clk 0:00:44.8]} 18. h5 {[%clk 0:01:55.4]} 18...
g5 {[%clk 0:00:44.2]} 19. exf5 {[%clk 0:01:49.5]} 19... Rxf5 {[%clk 0:00:45.1]}
20. O-O-O {[%clk 0:01:37.4]} 20... Raf8 {[%clk 0:00:38.2]} 21. Rh2 {[%clk
0:01:36.4]} 21... Nc5 {[%clk 0:00:31.7]} 22. Ng1 {[%clk 0:01:27.1]} 22... Qf7
{[%clk 0:00:25.2]} 23. g4 {[%clk 0:01:19.2]} 23... Rf4 {[%clk 0:00:18.9]} 24. f3
{[%clk 0:00:54.4]} 24... Qxc4 {[%clk 0:00:18]} 25. Nh3 {[%clk 0:00:52.2]} 25...
Qxa2 {[%clk 0:00:17.1]} 26. Nxf4 {[%clk 0:00:48.8]} 26... Rxf4 {[%clk 0:00:18]}
27. h6 {[%clk 0:00:16.3]} 27... Qa1+ {[%clk 0:00:14.8]} 28. Kc2 {[%clk
0:00:16.1]} 28... Qa4+ {[%clk 0:00:15.2]} 29. Kd2 {[%clk 0:00:12.4]} 29... Qb5
{[%clk 0:00:10.3]} 30. Ke1 {[%clk 0:00:11.4]} 30... Qc6 {[%clk 0:00:08.6]} 31.
Ke2 {[%clk 0:00:10]} 31... Ne6 {[%clk 0:00:08]} 32. Qd3 {[%clk 0:00:04.7]} 32...
Rxg4 {[%clk 0:00:05.3]} 33. Qd5 {[%clk 0:00:03.5]} 33... Qxd5 {[%clk 0:00:05]}
34. Rxd5 {[%clk 0:00:04.4]} 34... Nf4+ {[%clk 0:00:05.4]} 35. Kf2 {[%clk
0:00:02.4]} 35... Nxd5 {[%clk 0:00:03.3]} 36. fxg4 {[%clk 0:00:02.9]} 36... Nf6
{[%clk 0:00:04.1]} 37. Kf3 {[%clk 0:00:02.7]} 37... Kf7 {[%clk 0:00:04.4]} 38.
Rf2 {[%clk 0:00:02.5]} 38... Kg6 {[%clk 0:00:04.5]} 39. Re2 {[%clk 0:00:02.4]}
39... Kxh6 {[%clk 0:00:04.5]} 40. Kg3 {[%clk 0:00:03.3]} 40... Kg6 {[%clk
0:00:05]} 41. Re1 {[%clk 0:00:04.1]} 41... h6 {[%clk 0:00:05.3]} 42. Ra1 {[%clk
0:00:05]} 42... a6 {[%clk 0:00:05.3]} 43. Ra3 {[%clk 0:00:05.9]} 43... Ne4+
{[%clk 0:00:03.2]} 44. Kf3 {[%clk 0:00:06]} 44... Nc5 {[%clk 0:00:03.8]} 45. b4
{[%clk 0:00:06.3]} 45... Ne6 {[%clk 0:00:03.8]} 46. b5 {[%clk 0:00:06.6]} 46...
axb5 {[%clk 0:00:03.8]} 47. Ra8 {[%clk 0:00:07.5]} 47... Kf7 {[%clk 0:00:02.2]}
48. Rb8 {[%clk 0:00:07.8]} 48... b6 {[%clk 0:00:02.3]} 49. Rb7 {[%clk
0:00:07.6]} 49... Kf6 {[%clk 0:00:02.3]} 50. Ke4 {[%clk 0:00:07.6]} 50... Nc5+
{[%clk 0:00:01.9]} 51. Kd5 {[%clk 0:00:08.5]} 51... Nxb7 {[%clk 0:00:02.8]} 52.
Kc6 {[%clk 0:00:09.4]} 52... Nc5 {[%clk 0:00:03.7]} 53. Kxc7 {[%clk 0:00:09.7]}
53... e4 {[%clk 0:00:04.6]} 54. Kxb6 {[%clk 0:00:10.6]} 54... e3 {[%clk
0:00:05.5]} 55. Kxb5 {[%clk 0:00:11]} 55... e2 {[%clk 0:00:06.4]} 0-1

[Event "*** Titled Tuesday Blitz"]
[Site "Chess.com"]
[Date "2020.05.05"]
[Round "4"]
[White "Shuvalov"]
[Black "Susal_De_Silva"]
[Result "1/2-1/2"]
[WhiteElo "2433"]
[BlackElo "2248"]
[TimeControl "180+1"]
[EndTime "10:42:00 PDT"]
[Termination "Game drawn - insufficient material"]

1. Nf3 {[%clk 0:03:00.9]} 1... Nf6 {[%clk 0:02:59.6]} 2. c4 {[%clk 0:03:00.2]}
2... b6 {[%clk 0:02:58.4]} 3. g3 {[%clk 0:02:59.7]} 3... Bb7 {[%clk 0:02:59]} 4.
Bg2 {[%clk 0:03:00.1]} 4... g6 {[%clk 0:02:59.2]} 5. O-O {[%clk 0:02:59.8]} 5...
Bg7 {[%clk 0:02:59.7]} 6. Nc3 {[%clk 0:02:59.5]} 6... O-O {[%clk 0:02:59.6]} 7.
Re1 {[%clk 0:02:59.6]} 7... c5 {[%clk 0:02:47.3]} 8. e4 {[%clk 0:02:59.2]} 8...
d6 {[%clk 0:02:47.6]} 9. d4 {[%clk 0:02:59]} 9... cxd4 {[%clk 0:02:47.3]} 10.
Nxd4 {[%clk 0:02:59.9]} 10... a6 {[%clk 0:02:46.4]} 11. e5 {[%clk 0:02:57.8]}
11... dxe5 {[%clk 0:02:44.3]} 12. Bxb7 {[%clk 0:02:56.7]} 12... Ra7 {[%clk
0:02:39.8]} 13. Nc6 {[%clk 0:02:53.7]} 13... Qxd1 {[%clk 0:02:35]} 14. Nxe7+
{[%clk 0:02:43.6]} 14... Kh8 {[%clk 0:02:34.2]} 15. Rxd1 {[%clk 0:02:44.2]}
15... Rxb7 {[%clk 0:02:34.6]} 16. Ned5 {[%clk 0:02:43.1]} 16... Rc8 {[%clk
0:02:32.8]} 17. b3 {[%clk 0:02:22.1]} 17... Nc6 {[%clk 0:02:21]} 18. Be3 {[%clk
0:02:19.6]} 18... Nxd5 {[%clk 0:02:14]} 19. Nxd5 {[%clk 0:02:17.6]} 19... Nd4
{[%clk 0:02:13.8]} 20. Kg2 {[%clk 0:01:55.8]} 20... b5 {[%clk 0:02:11.6]} 21.
Rac1 {[%clk 0:01:50.6]} 21... bxc4 {[%clk 0:02:10.8]} 22. Rxc4 {[%clk
0:01:50.3]} 22... Rxc4 {[%clk 0:02:04.5]} 23. bxc4 {[%clk 0:01:51.2]} 23... Rb2
{[%clk 0:02:01.8]} 24. Rc1 {[%clk 0:01:46.5]} 24... Bf8 {[%clk 0:01:34.8]} 25.
c5 {[%clk 0:01:41.3]} 25... Nc6 {[%clk 0:01:07.4]} 26. a3 {[%clk 0:01:37.3]}
26... Kg7 {[%clk 0:01:06.9]} 27. Nb4 {[%clk 0:01:36.6]} 27... Nxb4 {[%clk
0:00:48.8]} 28. axb4 {[%clk 0:01:37.5]} 28... Rxb4 {[%clk 0:00:46.9]} 29. c6
{[%clk 0:01:37.2]} 29... Rb8 {[%clk 0:00:47.2]} 30. c7 {[%clk 0:01:36.9]} 30...
Rc8 {[%clk 0:00:47.7]} 31. Bb6 {[%clk 0:01:32.2]} 31... Bd6 {[%clk 0:00:45.6]}
32. Kf3 {[%clk 0:01:28.2]} 32... Kf6 {[%clk 0:00:44.8]} 33. Ke4 {[%clk
0:01:25.7]} 33... Ke7 {[%clk 0:00:45]} 34. Kd5 {[%clk 0:01:25.2]} 34... Kd7
{[%clk 0:00:43.7]} 35. Ra1 {[%clk 0:01:08.7]} 35... Bxc7 {[%clk 0:00:36.1]} 36.
Bxc7 {[%clk 0:01:05.1]} 36... Rxc7 {[%clk 0:00:37]} 37. Rxa6 {[%clk 0:01:03.4]}
37... Rc2 {[%clk 0:00:25.8]} 38. Ra7+ {[%clk 0:00:59]} 38... Ke8 {[%clk
0:00:24.3]} 39. f3 {[%clk 0:00:44]} 39... Rxh2 {[%clk 0:00:22.6]} 40. Kxe5
{[%clk 0:00:43.5]} 40... Rg2 {[%clk 0:00:21]} 41. g4 {[%clk 0:00:41]} 41... Rf2
{[%clk 0:00:20]} 42. f4 {[%clk 0:00:38.4]} 42... Kf8 {[%clk 0:00:19.9]} 43. f5
{[%clk 0:00:34.4]} 43... Kg7 {[%clk 0:00:17.4]} 44. Ra6 {[%clk 0:00:28.2]} 44...
Re2+ {[%clk 0:00:15.2]} 45. Kf4 {[%clk 0:00:27.1]} 45... Rf2+ {[%clk 0:00:15.4]}
46. Kg3 {[%clk 0:00:27]} 46... Rb2 {[%clk 0:00:13.5]} 47. f6+ {[%clk 0:00:25.3]}
47... Kh6 {[%clk 0:00:13.4]} 48. Ra7 {[%clk 0:00:24]} 48... Rb3+ {[%clk
0:00:09.9]} 49. Kf4 {[%clk 0:00:22.2]} 49... Rb4+ {[%clk 0:00:08.1]} 50. Kf3
{[%clk 0:00:21.8]} 50... Rb3+ {[%clk 0:00:08.1]} 51. Ke4 {[%clk 0:00:21.7]}
51... Rb4+ {[%clk 0:00:07.9]} 52. Ke5 {[%clk 0:00:21.7]} 52... Rb5+ {[%clk
0:00:06.3]} 53. Kd6 {[%clk 0:00:21.8]} 53... Kg5 {[%clk 0:00:06.3]} 54. Rxf7
{[%clk 0:00:20.7]} 54... Rb1 {[%clk 0:00:04.8]} 55. Rf8 {[%clk 0:00:17.5]} 55...
Kxg4 {[%clk 0:00:04.4]} 56. f7 {[%clk 0:00:17.4]} 56... Rf1 {[%clk 0:00:04.9]}
57. Ke6 {[%clk 0:00:16.4]} 57... h5 {[%clk 0:00:04]} 58. Rg8 {[%clk 0:00:16.1]}
58... g5 {[%clk 0:00:02.7]} 59. f8=Q {[%clk 0:00:15]} 59... Rxf8 {[%clk
0:00:03.2]} 60. Rxf8 {[%clk 0:00:15.9]} 60... h4 {[%clk 0:00:03.7]} 61. Ke5
{[%clk 0:00:15.3]} 61... h3 {[%clk 0:00:04.2]} 62. Ke4 {[%clk 0:00:15.5]} 62...
h2 {[%clk 0:00:03.9]} 63. Rh8 {[%clk 0:00:15.1]} 63... Kg3 {[%clk 0:00:04.2]}
64. Kf5 {[%clk 0:00:15.3]} 64... Kg2 {[%clk 0:00:04.1]} 65. Kxg5 {[%clk
0:00:15]} 65... h1=Q {[%clk 0:00:04.3]} 66. Rxh1 {[%clk 0:00:14.7]} 66... Kxh1
{[%clk 0:00:05.2]} 1/2-1/2

[Event "*** Titled Tuesday Blitz"]
[Site "Chess.com"]
[Date "2020.05.05"]
[Round "4"]
[White "SahaNeelash"]
[Black "124chess"]
[Result "0-1"]
[WhiteElo "2496"]
[BlackElo "2730"]
[TimeControl "180+1"]
[EndTime "10:42:03 PDT"]
[Termination "124chess won on time"]

1. d4 {[%clk 0:03:00.9]} 1... d5 {[%clk 0:02:59.4]} 2. Bf4 {[%clk 0:02:59.8]}
2... c5 {[%clk 0:02:57]} 3. e3 {[%clk 0:02:59.2]} 3... Nc6 {[%clk 0:02:57.6]} 4.
c3 {[%clk 0:02:57.7]} 4... Bf5 {[%clk 0:02:56.9]} 5. Qb3 {[%clk 0:02:53.4]} 5...
Qd7 {[%clk 0:02:56.1]} 6. Bb5 {[%clk 0:02:49.4]} 6... c4 {[%clk 0:02:41.4]} 7.
Qd1 {[%clk 0:02:43.7]} 7... a6 {[%clk 0:02:41]} 8. Ba4 {[%clk 0:02:42.9]} 8...
e6 {[%clk 0:02:36.9]} 9. Nf3 {[%clk 0:02:42.4]} 9... b5 {[%clk 0:02:33.6]} 10.
Bc2 {[%clk 0:02:41.8]} 10... Bd6 {[%clk 0:02:34.1]} 11. O-O {[%clk 0:02:40.5]}
11... Nf6 {[%clk 0:02:33.9]} 12. Nbd2 {[%clk 0:02:40.1]} 12... O-O {[%clk
0:02:33.6]} 13. Re1 {[%clk 0:02:38.1]} 13... Bxc2 {[%clk 0:01:20.4]} 14. Qxc2
{[%clk 0:02:35.7]} 14... b4 {[%clk 0:01:17.5]} 15. Bg5 {[%clk 0:02:27.7]} 15...
bxc3 {[%clk 0:01:14.1]} 16. bxc3 {[%clk 0:02:25.4]} 16... Be7 {[%clk 0:01:08.4]}
17. e4 {[%clk 0:02:24.3]} 17... h6 {[%clk 0:01:04.1]} 18. Bf4 {[%clk 0:02:14.1]}
18... dxe4 {[%clk 0:01:02.1]} 19. Nxe4 {[%clk 0:02:06.6]} 19... Nd5 {[%clk
0:01:02.6]} 20. Bc1 {[%clk 0:01:55]} 20... Rab8 {[%clk 0:01:01.5]} 21. Ned2
{[%clk 0:01:53]} 21... Nb6 {[%clk 0:00:49.4]} 22. a4 {[%clk 0:01:50.6]} 22...
Qd5 {[%clk 0:00:36.3]} 23. Ba3 {[%clk 0:01:45.3]} 23... Bxa3 {[%clk 0:00:34.6]}
24. Rxa3 {[%clk 0:01:39.7]} 24... Rfc8 {[%clk 0:00:35.2]} 25. Ne4 {[%clk
0:01:22]} 25... Na5 {[%clk 0:00:32.8]} 26. Nc5 {[%clk 0:01:16.6]} 26... Nd7
{[%clk 0:00:16.9]} 27. Nxa6 {[%clk 0:01:14.5]} 27... Rb6 {[%clk 0:00:17]} 28.
Nb4 {[%clk 0:01:13.9]} 28... Qb7 {[%clk 0:00:14.5]} 29. Raa1 {[%clk 0:01:10.9]}
29... Nb3 {[%clk 0:00:14.4]} 30. Rab1 {[%clk 0:01:06.2]} 30... Nf6 {[%clk
0:00:14.5]} 31. Nd2 {[%clk 0:01:01.8]} 31... Na5 {[%clk 0:00:13.4]} 32. h3
{[%clk 0:00:56.8]} 32... Rb8 {[%clk 0:00:12]} 33. Re5 {[%clk 0:00:53.1]} 33...
Nd5 {[%clk 0:00:11.6]} 34. Kh2 {[%clk 0:00:26.3]} 34... Nc6 {[%clk 0:00:11.2]}
35. Nxc6 {[%clk 0:00:21.7]} 35... Qxc6 {[%clk 0:00:12.1]} 36. Rxb6 {[%clk
0:00:20.5]} 36... Rxb6 {[%clk 0:00:12.8]} 37. a5 {[%clk 0:00:18]} 37... Ra6
{[%clk 0:00:13]} 38. Qa2 {[%clk 0:00:17.2]} 38... Nxc3 {[%clk 0:00:12.6]} 39.
Qxc4 {[%clk 0:00:13.4]} 39... Nd5 {[%clk 0:00:13.2]} 40. Qxc6 {[%clk 0:00:13]}
40... Rxc6 {[%clk 0:00:13.7]} 41. Nb3 {[%clk 0:00:13.1]} 41... Rc3 {[%clk
0:00:13.8]} 42. Nc5 {[%clk 0:00:12.9]} 42... Ra3 {[%clk 0:00:13.8]} 43. a6
{[%clk 0:00:12.1]} 43... Ra2 {[%clk 0:00:14.3]} 44. Kg3 {[%clk 0:00:11.6]} 44...
g5 {[%clk 0:00:14.6]} 45. Re1 {[%clk 0:00:11.2]} 45... Kg7 {[%clk 0:00:14.4]}
46. Rb1 {[%clk 0:00:04.1]} 46... h5 {[%clk 0:00:14]} 47. Rb7 {[%clk 0:00:03.9]}
47... h4+ {[%clk 0:00:13.6]} 48. Kh2 {[%clk 0:00:03.7]} 48... Kg6 {[%clk
0:00:12.5]} 49. a7 {[%clk 0:00:03.6]} 49... Nf4 {[%clk 0:00:07.7]} 0-1

[Event "*** Titled Tuesday Blitz"]
[Site "Chess.com"]
[Date "2020.05.05"]
[Round "4"]
[White "BelaKis"]
[Black "peixe64"]
[Result "1-0"]
[WhiteElo "2057"]
[BlackElo "2220"]
[TimeControl "180+1"]
[EndTime "10:42:03 PDT"]
[Termination "BelaKis won by checkmate"]

1. Nf3 {[%clk 0:03:00.9]} 1... Nf6 {[%clk 0:02:58.4]} 2. g3 {[%clk 0:03:01]}
2... g6 {[%clk 0:02:58.6]} 3. Bg2 {[%clk 0:03:01.9]} 3... Bg7 {[%clk 0:02:59.2]}
4. O-O {[%clk 0:03:02.6]} 4... O-O {[%clk 0:02:59.3]} 5. c4 {[%clk 0:03:02.6]}
5... c6 {[%clk 0:02:59]} 6. d4 {[%clk 0:03:01.3]} 6... d5 {[%clk 0:02:59.3]} 7.
cxd5 {[%clk 0:03:01.5]} 7... cxd5 {[%clk 0:02:59.4]} 8. Nc3 {[%clk 0:03:02.4]}
8... Nc6 {[%clk 0:02:59.6]} 9. Bf4 {[%clk 0:03:03]} 9... b6 {[%clk 0:02:39.5]}
10. Rc1 {[%clk 0:02:56.2]} 10... Bb7 {[%clk 0:02:39.5]} 11. Ne5 {[%clk
0:02:43.8]} 11... Rc8 {[%clk 0:02:34.4]} 12. h3 {[%clk 0:02:24.1]} 12... e6
{[%clk 0:02:32.6]} 13. g4 {[%clk 0:02:16.5]} 13... Nd7 {[%clk 0:02:27.2]} 14.
Nxd7 {[%clk 0:02:05.3]} 14... Qxd7 {[%clk 0:02:27.1]} 15. e3 {[%clk 0:02:05.6]}
15... Na5 {[%clk 0:02:15]} 16. b3 {[%clk 0:02:04.5]} 16... Rc6 {[%clk
0:02:08.8]} 17. Qd2 {[%clk 0:02:02]} 17... Rfc8 {[%clk 0:02:06.6]} 18. Nb1
{[%clk 0:01:25.4]} 18... Ba6 {[%clk 0:01:56.3]} 19. Rfd1 {[%clk 0:01:14.5]}
19... Bf8 {[%clk 0:01:51.3]} 20. Rxc6 {[%clk 0:01:01.1]} 20... Qxc6 {[%clk
0:01:47.3]} 21. Bf1 {[%clk 0:01:01.3]} 21... Bxf1 {[%clk 0:01:38.7]} 22. Kxf1
{[%clk 0:01:02.2]} 22... Qc2 {[%clk 0:01:34.2]} 23. Ke2 {[%clk 0:01:01.7]} 23...
Bb4 {[%clk 0:01:09.1]} 24. Qxc2 {[%clk 0:00:39.4]} 24... Rxc2+ {[%clk
0:01:07.6]} 25. Kf1 {[%clk 0:00:25.5]} 25... Rxa2 {[%clk 0:00:43.3]} 26. Rc1
{[%clk 0:00:25.5]} 26... Ra1 {[%clk 0:00:20.8]} 27. Bh6 {[%clk 0:00:19.9]} 27...
f6 {[%clk 0:00:20.7]} 28. Kg2 {[%clk 0:00:17.6]} 28... Kf7 {[%clk 0:00:21]} 29.
Rc7+ {[%clk 0:00:17.1]} 29... Ke8 {[%clk 0:00:21.3]} 30. Rxa7 {[%clk 0:00:14.5]}
30... Rxb1 {[%clk 0:00:21.2]} 31. Rxh7 {[%clk 0:00:14.3]} 31... Nxb3 {[%clk
0:00:20.1]} 32. Rb7 {[%clk 0:00:13.9]} 32... Ba5 {[%clk 0:00:19.2]} 33. Rg7
{[%clk 0:00:13.6]} 33... Nd2 {[%clk 0:00:19.7]} 34. Rxg6 {[%clk 0:00:13.3]}
34... Ne4 {[%clk 0:00:20.1]} 35. f3 {[%clk 0:00:12.7]} 35... Rb2+ {[%clk
0:00:20]} 36. Kg1 {[%clk 0:00:12.5]} 36... Nc3 {[%clk 0:00:18.6]} 37. Rxf6
{[%clk 0:00:12.6]} 37... Ke7 {[%clk 0:00:19.1]} 38. Bg5 {[%clk 0:00:11.6]} 38...
Ne2+ {[%clk 0:00:19.7]} 39. Kf1 {[%clk 0:00:10]} 39... Ng3+ {[%clk 0:00:19]} 40.
Kg1 {[%clk 0:00:10.3]} 40... Kd7 {[%clk 0:00:18.1]} 41. h4 {[%clk 0:00:10.1]}
41... Kc6 {[%clk 0:00:19]} 42. h5 {[%clk 0:00:10.3]} 42... Ra2 {[%clk 0:00:14]}
43. h6 {[%clk 0:00:10.1]} 43... Bd2 {[%clk 0:00:14.6]} 44. h7 {[%clk 0:00:09.9]}
44... Ra8 {[%clk 0:00:15.2]} 45. Rh6 {[%clk 0:00:09.3]} 45... Rh8 {[%clk
0:00:13]} 46. Kg2 {[%clk 0:00:09]} 46... Ne2 {[%clk 0:00:10.3]} 47. Kf2 {[%clk
0:00:09.2]} 47... Nc3 {[%clk 0:00:10.1]} 48. Bf6 {[%clk 0:00:08.2]} 48... Rxh7
{[%clk 0:00:10.7]} 49. Rxh7 {[%clk 0:00:08.5]} 49... b5 {[%clk 0:00:11.6]} 50.
Rh8 {[%clk 0:00:08.8]} 50... b4 {[%clk 0:00:11.9]} 51. g5 {[%clk 0:00:09.2]}
51... Nd1+ {[%clk 0:00:11.8]} 52. Ke2 {[%clk 0:00:08.9]} 52... b3 {[%clk
0:00:12.6]} 53. Kxd2 {[%clk 0:00:09]} 53... b2 {[%clk 0:00:13.3]} 54. Rb8 {[%clk
0:00:09.2]} 54... Kc7 {[%clk 0:00:11.2]} 55. Rxb2 {[%clk 0:00:08.2]} 55... Nxb2
{[%clk 0:00:11.1]} 56. g6 {[%clk 0:00:09.1]} 56... Kd7 {[%clk 0:00:11.7]} 57.
Ke2 {[%clk 0:00:09.9]} 57... Ke8 {[%clk 0:00:12.4]} 58. e4 {[%clk 0:00:09.5]}
58... dxe4 {[%clk 0:00:12.2]} 59. fxe4 {[%clk 0:00:09.9]} 59... Nc4 {[%clk
0:00:13.1]} 60. Kf3 {[%clk 0:00:10.1]} 60... Nd6 {[%clk 0:00:13.4]} 61. Kf4
{[%clk 0:00:10]} 61... Nc4 {[%clk 0:00:13.8]} 62. Bh8 {[%clk 0:00:06.8]} 62...
Kf8 {[%clk 0:00:14]} 63. Bf6 {[%clk 0:00:06.6]} 63... Kg8 {[%clk 0:00:14.3]} 64.
d5 {[%clk 0:00:06.2]} 64... Kf8 {[%clk 0:00:15]} 65. dxe6 {[%clk 0:00:04.7]}
65... Nb6 {[%clk 0:00:15.2]} 66. Kf5 {[%clk 0:00:04.5]} 66... Nc8 {[%clk
0:00:14.8]} 67. e7+ {[%clk 0:00:04.5]} 67... Nxe7+ {[%clk 0:00:14.9]} 68. Bxe7+
{[%clk 0:00:04.4]} 68... Kxe7 {[%clk 0:00:15.8]} 69. e5 {[%clk 0:00:04.7]} 69...
Kf8 {[%clk 0:00:16.7]} 70. e6 {[%clk 0:00:05.6]} 70... Kg7 {[%clk 0:00:17.6]}
71. e7 {[%clk 0:00:05.7]} 71... Kg8 {[%clk 0:00:18.2]} 72. e8=Q+ {[%clk
0:00:06.6]} 72... Kg7 {[%clk 0:00:19.1]} 73. Qf7+ {[%clk 0:00:07]} 73... Kh8
{[%clk 0:00:19.2]} 74. Qh7# {[%clk 0:00:07.9]} 1-0